Cogmind - Beta 15 @@@ ROGUE MODE // 2025.07.23 @ 00:58:04 Player: shapeshifter Result: Destroyed by J0-TUO(R) with Subdweller Machine Gun Performance ------------- Evolutions (0) 0 Regions Visited (3) 600 Robots Destroyed (17) 85 Value Destroyed (370) 370 Prototype IDs (11) 220 Alien Tech Used (0) 0 Bonus (0) 0 TOTAL SCORE: 1275 Bonus ------- None Cogmind --------- Core Integrity 0/250 Matter 285/300 Energy 120/150 System Corruption 1% Temperature Cool (0) Movement Treading (240) Ox1 Location -10/Subcaves Parts ------- > --- POWER (1) -------- Light Angular Momentum Engine > --- PROPULSION (2) --- Light Treads Light Treads > --- UTILITY (2) ------ High-capacity Storage Unit > --- WEAPON (2) ------- Small Laser Mining Laser > --- INVENTORY (20) --- Light Treads Carbon-fiber Leg Carbon-fiber Leg Carbon-fiber Leg Makeshift Leg Cargo Legs Heat Sink Small Storage Unit Medium Matter Pod (100) Subdweller Optics Subdweller Optics Sensor Array Improved Terrain Scanner Targeting Computer Beam Rifle Light Assault Rifle Peak State ------------ > --- POWER ------------ Light Angular Momentum Engine > --- PROPULSION ------- Light Treads Compact Wheel > --- UTILITY ---------- High-capacity Storage Unit Light Armor Plating > --- WEAPON ----------- Small Laser Mining Laser > --- INVENTORY -------- Light Treads Light Treads Light Treads Carbon-fiber Leg Carbon-fiber Leg Carbon-fiber Leg Makeshift Leg Cargo Legs Heat Sink Small Storage Unit Medium Matter Pod Subdweller Optics Subdweller Optics Sensor Array Improved Terrain Scanner Seismic Detector Targeting Computer Light Assault Rifle [Rating: 15] Favorites ----------- Power Ion Engine Engine Ion Engine Propulsion Light Treads Treads Light Treads Wheel Wheel Utility High-capacity Storage Unit Device Seismic Detector Storage High-capacity Storage Unit Protection Light Armor Plating Weapon Light Assault Rifle Energy Gun Medium Laser Ballistic Gun Light Assault Rifle Special Weapon Mining Laser Build | -11 -10 -10 -10 ------- Run | Yrd Mat Min Sub Slots Evolved . | . . . . Power . | . . . . Propulsion . | . . . . Utility . | . . . . Weapon . | . . . . Parts Attached 19 | 8 2 1 8 Power 2 | 1 . . 1 Engine 2 | 1 . . 1 Core . | . . . . Reactor . | . . . . Propulsion 7 | 3 1 . 3 Treads 5 | 2 . . 3 Leg . | . . . . Wheel 2 | 1 1 . . Hover . | . . . . Flight . | . . . . Utility 4 | 2 1 . 1 Device 1 | 1 . . . Storage 2 | 1 1 . . Processor . | . . . . Hackware . | . . . . Protection 1 | . . . 1 Artifact . | . . . . Weapon 6 | 2 . 1 3 Energy Gun 2 | 1 . . 1 Energy Cannon . | . . . . Ballistic Gun 3 | 1 . 1 1 Ballistic Cannon . | . . . . Launcher . | . . . . Special Weapon 1 | . . . 1 Impact Weapon . | . . . . Slashing Weapon . | . . . . Piercing Weapon . | . . . . Special Melee Weapon . | . . . . Unidentified Prototypes . | . . . . Parts Lost 8 | . . 1 7 Power 1 | . . . 1 Propulsion 4 | . . . 4 Utility 1 | . . . 1 Weapon 2 | . . 1 1 Highest Loss Streak 4 | . . 1 4 To Critical Strikes . | . . . . Average Backups 15 | 5 12 19 17 Power . | . 1 1 . Propulsion 6 | 3 5 8 7 Utility 6 | . 4 7 8 Weapon 2 | . 2 2 1 Tool/Special . | . . . . Unused Backups 17 | . . 3 14 Power 1 | . . 1 . Propulsion 8 | . . 2 6 Utility 7 | . . . 7 Weapon 1 | . . . 1 Tool/Special . | . . . . Average Slot Usage (%) 96 | . 100 93 96 Engine 13 | . 14 14 13 Treads 14 | . 16 14 13 Wheel 13 | . 11 14 13 Device 8 | . 14 14 1 Storage 14 | . 14 14 14 Protection 5 | . . . 12 Energy Gun 11 | . 14 7 12 Ballistic Gun 12 | . 14 14 11 Special Weapon 1 | . . . 2 Peak Build Rating 15 | 7 9 9 15 Average Rating 10 | 5 8 8 13 On Entrance 6 | . 7 9 9 Naked Turns . | . . . . Heaviest Build 54 | 15 50 49 54 Greatest Support 40 | 40 40 10 16 Greatest Overweight (x) 4 | . 4 4 4 Average Overweight (x) 3 | . 3 4 3 Largest Inventory Capacity 20 | 8 20 20 20 Average Capacity 18 | 7 18 20 20 Most Carried 20 | 8 19 20 20 Average Carried 15 | 5 12 19 18 Final Capacity 20 | 8 20 20 20 Final Carried 20 | 7 19 20 17 Class Distribution -------------------- 100% | Mutant Dominant Class ---------------- Mutant | -10/Materials Mutant | -10/Mines Mutant | -10/Subcaves Resources | -11 -10 -10 -10 ----------- Run | Yrd Mat Min Sub Matter Collected 637 | 256 148 134 99 Remotely . | . . . . Salvage Created 481 | 58 215 40 168 Parts 37 | 7 17 6 7 Haulers Intercepted . | . . . . Recyclers Shooed 1 | . 1 . . Parts Field Recycled . | . . . . Retrieved Matter . | . . . . Parts Self-Destructed 7 | . . . 7 Prevented . | . . . . Kills | -11 -10 -10 -10 ------- Run | Yrd Mat Min Sub Combat Hostiles Destroyed 14 | . 7 3 4 Guns 14 | . 7 3 4 Classes Destroyed 5 | 1 2 . 2 Tunneler 3 | 3 . . . Swarmer 6 | . 3 3 . Grunt 6 | . 4 . 2 Sentry 1 | . . . 1 Subdweller 1 | . . . 1 Best Kill Streak 4 | 2 4 2 2 Combat Bots Only 4 | . 4 2 2 Max Kills in Single Turn 2 | 1 2 1 1 Gunslinging 1 | . 1 . . Exploded . | . . . . Melee . | . . . . Uniques/NPCs Destroyed . | . . . . Combat | -11 -10 -10 -10 -------- Run | Yrd Mat Min Sub Hostile Shots Fired 111 | . 40 17 54 Missed 30 | . 8 8 14 Hits 81 | . 32 9 40 Projectile 81 | . 32 9 40 Damage Taken 1232 | . 329 75 828 Core 254 | . 95 15 144 Absorbed by Shields . | . . . . Core Remaining (%) 100 | 100 . . . Volleys Fired 84 | 8 24 11 41 Largest 2 | 2 2 2 2 Hottest 140 | 70 70 70 140 Shots Fired 147 | 16 48 17 66 Gun 137 | 16 48 17 56 Cannon . | . . . . Launcher . | . . . . Special 10 | . . . 10 Kinetic 74 | 8 24 11 31 Thermal 73 | 8 24 6 35 Explosive . | . . . . Electromagnetic . | . . . . Robot Hit Streak 11 | 4 5 2 11 Robot Miss Streak 3 | 1 2 3 2 Penetration Max . | . . . . Secondary Targets 5 | . 2 1 2 Max Gunslinging Chain 1 | . 1 1 1 Shots Hit Robots 84 | 12 24 8 40 Core Hits 28 | 4 11 3 10 Critical Kills . | . . . . Critical Parts Destroyed . | . . . . Critical Strikes 1 | . 1 . . Burn 1 | . 1 . . Melee Attacks . | . . . . Impact . | . . . . Slashing . | . . . . Piercing . | . . . . Sneak Attacks . | . . . . Combat Hostiles . | . . . . Follow-up Attacks . | . . . . Damage Inflicted 960 | 129 365 83 383 Guns 912 | 129 365 83 335 Cannons . | . . . . Explosions . | . . . . Melee . | . . . . Ramming . | . . . . Kinetic 472 | 53 192 45 182 Thermal 488 | 76 173 38 201 Explosive . | . . . . Electromagnetic . | . . . . Impact . | . . . . Slashing . | . . . . Piercing . | . . . . Highest Corruption 1 | . 1 1 1 Average Corruption 1 | . 1 1 1 Corruption Purged . | . . . . Corruption Blocked . | . . . . Effects 17 | . 2 5 10 Message Errors 1 | . . 1 . Matter Fused 2 | . . 1 1 Heat Flow Errors 2 | . . . 2 Energy Discharges 4 | . 1 . 3 Parts Fused 1 | . . . 1 Data Loss (minor) 3 | . . 2 1 Data Loss (major) 3 | . 1 1 1 Alerts 1 | . . . 1 Overload Shots . | . . . . Overflow Damage . | . . . . Projectiles . | . . . . Explosions . | . . . . Melee . | . . . . Knockbacks . | . . . . Impact . | . . . . Kinetic . | . . . . Secondary . | . . . . Self-Inflicted Damage . | . . . . Shots . | . . . . Rammed . | . . . . Targets Rammed . | . . . . Kicked . | . . . . Crushed . | . . . . Highest Temperature 263 | 36 204 100 263 Average Temperature 56 | 14 66 52 70 Received Heat Transfer 333 | . 120 . 213 Siege Activations . | . . . . Martial Activations . | . . . . Shielding Activations . | . . . . Robots Disrupted . | . . . . Combat Hostiles . | . . . . Robots Corrupted . | . . . . Combat Hostiles . | . . . . Parts Fried . | . . . . Impact Corruptions . | . . . . Robots Melted . | . . . . Combat Hostiles . | . . . . Parts Melted 2 | . . 1 1 Heat Transferred 1375 | 222 592 111 450 Parts Sabotaged . | . . . . Parts Stolen . | . . . . Parts Stripped . | . . . . Power Chain Reactions . | . . . . Alert | -11 -10 -10 -10 ------- Run | Yrd Mat Min Sub Maximum Alert Level . | . . . . Low Security (%) 100 | 100 100 100 . Level 1 . | . . . . Level 2 . | . . . . Level 3 . | . . . . Level 4 . | . . . . Level 5 . | . . . . High Security . | . . . . Max Security . | . . . . Peak Influence 110 | 5 110 32 . Initial 22 | . . 22 . Average 18 | . 45 3 . Influence Increases 360 | 15 213 72 60 Destroy 0b10 Robot/C 260 | . 140 60 60 Destroy 0b10 Robot/NC 15 | 15 . . . Destroy Leader 40 | . 30 10 . Allied During Kill 2 | . . 2 . Successful Hack 13 | . 13 . . Lose Combat Pursuer 30 | . 30 . . Influence Decreases 360 | 15 155 130 60 Entered New Map 36 | . . 36 . Time Decay 294 | 15 155 64 60 Lost Part 10 | . . 10 . Lost Ally 20 | . . 20 . Squads Dispatched 2 | . 2 . . Investigation 1 | . 1 . . Extermination . | . . . . Reinforcement 1 | . 1 . . Assault . | . . . . Garrison . | . . . . Intercept . | . . . . Searches Triggered . | . . . . Construction Impeded . | . . . . Haulers Reinforced . | . . . . Active Scanning Responses . | . . . . Cargo Convoy Interrupts . | . . . . Stealth | -11 -10 -10 -10 --------- Run | Yrd Mat Min Sub Distress Signals . | . . . . Communications Jammed . | . . . . Distress Signals . | . . . . Times Spotted 23 | . 14 3 6 Peak Tracking Total 4 | . 4 3 2 Tactical Retreats 1 | . 1 . . Traps | -11 -10 -10 -10 ------- Run | Yrd Mat Min Sub Traps Triggered 1 | . 1 . . Indirectly . | . . . . Trap Hack Attempts . | . . . . Triggered . | . . . . Disarmed . | . . . . Reprogrammed . | . . . . Reused . | . . . . Traps Extracted . | . . . . Installed . | . . . . Triggered . | . . . . Machines | -11 -10 -10 -10 ---------- Run | Yrd Mat Min Sub Machines Disabled 2 | . . . 2 Max in Single Turn 1 | . . . 1 Machines Repaired . | . . . . Machines Dismantled . | . . . . Machines Sabotaged . | . . . . Overloaded Fab Kills . | . . . . Hacking | -11 -10 -10 -10 --------- Run | Yrd Mat Min Sub Machines Accessed 8 | . 5 . 3 Terminals 4 | . 4 . . Fabricators . | . . . . Repair Stations . | . . . . Recycling Units 1 | . 1 . . Scanalyzers . | . . . . Garrison Access . | . . . . Total Hacks 25 | . 13 . 12 Successful 18 | . 6 . 12 Failed 7 | . 7 . . Catastrophic 1 | . 1 . . Database Lockouts . | . . . . Manual 7 | . 7 . . Terminals 10 | . 10 . . Fabricators . | . . . . Repair Stations . | . . . . Recycling Units 3 | . 3 . . Scanalyzers . | . . . . Garrison Access . | . . . . Terminal Hacks 13 | . 1 . 12 Record 9 | . . . 9 Open Door 1 | . . . 1 Alert Level 1 | . 1 . . Proto ID Catalog 1 | . . . 1 Release Object 1 | . . . 1 Fabricator Hacks . | . . . . Repair Station Hacks . | . . . . Recycling Unit Hacks 2 | . 2 . . Report Inventory 1 | . 1 . . Retrieve Components 1 | . 1 . . Scanalyzer . | . . . . Garrison Access Hacks . | . . . . Unauthorized Hacks 3 | . 3 . . Terminals 3 | . 3 . . Botnet 3 | . 3 . . Fabricators . | . . . . Repair Stations . | . . . . Recycling Units . | . . . . Scanalyzers . | . . . . Garrison Access . | . . . . Data Cores Recovered . | . . . . Used . | . . . . Hacking Detections 5 | . 5 . . Full Trace Events 1 | . 1 . . Feedback Events . | . . . . Feedback Blocked . | . . . . Robot Schematics Acquired . | . . . . Robots Built . | . . . . Authchips . | . . . . Time . | . . . . Total Robot Build Rating . | . . . . Part Schematics Acquired . | . . . . Parts Built . | . . . . Authchips . | . . . . Time . | . . . . Total Part Build Rating . | . . . . Parts Repaired . | . . . . Time . | . . . . Parts Recycled . | . . . . Recycled Matter . | . . . . Retrieved Matter . | . . . . Retrieved Components 3 | . 3 . . Parts Scanalyzed . | . . . . Part Schematics Acquired . | . . . . Parts Damaged . | . . . . Bothacking | -11 -10 -10 -10 ------------ Run | Yrd Mat Min Sub Used RIF Installer . | . . . . Robots Hacked . | . . . . Non-combat . | . . . . Combat . | . . . . Robot Hacks Applied . | . . . . Relay Couplers Released . | . . . . Fabnet Peak Effective % . | . . . . Robots Rewired . | . . . . Allies Hacked . | . . . . Hacks Repelled . | . . . . Allies | -11 -10 -10 -10 -------- Run | Yrd Mat Min Sub Total Allies 1 | . . 1 . Largest Group 1 | . . 1 . Highest-Rated Group 31 | . . 31 . Highest-Rated Ally 31 | . . 31 . Total Orders . | . . . . Ally Attacks 1 | . . 1 . Total Damage . | . . . . Kills . | . . . . Allies Corrupted . | . . . . Allies Melted . | . . . . Intel | -11 -10 -10 -10 ------- Run | Yrd Mat Min Sub Active Infowar (turns) 1151 | 24 465 558 104 Seismic 1151 | 24 465 558 104 Robot Analysis Total . | . . . . Derelict Logs Recovered 3 | . . 1 2 Drone Launches . | . . . . Drone Recoveries . | . . . . Exploration | -11 -10 -10 -10 ------------- Run | Yrd Mat Min Sub Turns Passed 2078 | 209 465 558 846 Spaces Moved 1202 | 107 262 349 484 Core 7 | 7 . . . Treads 137 | 100 37 . . Legs . | . . . . Wheels 1058 | . 225 349 484 Hover . | . . . . Flight . | . . . . Fastest Speed 50 | 50 140 140 140 Average Speed 143 | 152 142 140 144 Slowest Speed 160 | 160 160 140 145 Overloaded Moves . | . . . . Propulsion Burnouts . | . . . . Robots Hopped . | . . . . Potential Cave-ins . | . . . . Cave-ins Triggered . | . . . . Exploration Rate (%) 39 | 6 47 76 28 Regions Visited 3 Branch Regions 2 Pre-discovered Areas . | . . . . Known Exits Taken . | . . . . Unknown Exits Taken 3 | 1 1 1 . Scrap Searched 1 | . . 1 . Spaces Dug . | . . . . Terrain Destroyed . | . . . . Melee . | . . . . Projectile . | . . . . AOE . | . . . . Terrain Rammed . | . . . . Walls Destroyed . | . . . . Machines Disabled . | . . . . Actions | -11 -10 -10 -10 --------- Run | Yrd Mat Min Sub Total 1399 | 137 303 405 554 Wait 48 | . 2 36 10 Move 1199 | 106 261 348 484 Hop . | . . . . Pick Up 36 | 14 12 5 5 Fast Attach . | . . . . Attach 15 | 8 . . 7 Detach 1 | 1 . . . Swap 9 | . 4 1 4 Drop 6 | . . 4 2 Fire 84 | 8 24 11 41 Melee . | . . . . Ram . | . . . . Kick . | . . . . Crush . | . . . . Escape Stasis . | . . . . Rewire . | . . . . Trap . | . . . . Miscellaneous 1 | . . . 1 Route ------- -11/Scrapyard -10/Materials -10/Mines (discovered 2 exits: *Mat / *Sub) -10/Subcaves History --------- Turn | Location | Event 2 | -11/Scrapyard | Met Revision 17 7 | -11/Scrapyard | Discovered new exit (range 16) 210 | -11/Scrapyard | Entered Materials 316 | -10/Materials | Build established: Mutant 621 | -10/Materials | Discovered new exit (range 9) 675 | -10/Materials | Entered Mines 696 | -10/Mines | Received a Mining Laser from a helpful Derelict 766 | -10/Mines | Met a Derelict bent on vengeance 825 | -10/Mines | Identified exit to Materials 1224 | -10/Mines | Discovered new exit (range 4) 1233 | -10/Mines | Entered Subcaves 1234 | -10/Subcaves | Approached by a straggling Scientist 1265 | -10/Subcaves | Shifting Twisted Machinery released Sub. Machine Gun 1268 | -10/Subcaves | Shifting Twisted Machinery released Battle Rifle 1268 | -10/Subcaves | Learned Materials trap positions 1328 | -10/Subcaves | Core integrity fell below 50% 1389 | -10/Subcaves | Lost 4 parts (1p2n1w) 1458 | -10/Subcaves | A swath of the cavern ceiling suddenly collapsed 1704 | -10/Subcaves | Visited 4L-MR0's lab 1763 | -10/Subcaves | Found Cargo Legs 2019 | -10/Subcaves | Released subatomizers from SUBCON Basin 2064 | -10/Subcaves | Core integrity fell below 20% 2079 | -10/Subcaves | Destroyed by J0-TUO(R) with Subdweller Machine Gun Last Messages --------------- nuisance in their natural Subcaves environment where a certain balance has been achieved, there is a high probability that sudden introduction into previously unexposed areas could cause more extreme side effects. Take all precautions to prevent this from happening. >>Release Inventory Accessing inventory controls... Collection purity confirmed 100%... Ejecting SUBCON Basin... Delivery behind schedule, handle with care! 02013_ Dropped Seismic Detector. 02019_ Released subatomizers from SUBCON Basin. 02024_ Subatomizers dissect the Seismic Detector. 02043_ Lgt. Treads destroyed. 02047_ System corrupted: Energy discharge (-31). 02067_ Com. Wheel destroyed. 02069_ Lgt. Armor Plating destroyed. Map ----- +----------------------------------------------------+ | ????????????????????# #### ???# | | ?????????????????????# ???## %& | | ???????????????????### #???# | | ???????????????????? #??## | | ????????????????????? #### | | ???????????????????????# ## | | ??????????????????????## ## | | ??????????????????????# ## | | ????????????????????### ## # | | ?????????????????#### ## ## ## | | ?????????????????# & #### ##? | | ?????????????????# &% ######??####?? | | ?????????????????# # ###????????????? | | ???????????????### #########??????????????? | | ????#######??### #?????????????????????? | | ????#"""""#?## ## #?????????????????????? | | ????#"X! "### # # #?????????????????????? | | ????#""& "#" # # ## #?????????????????????? | | ????#"" "#" # ## ##????????????????????? | | ????#"" ## #????????????????????? | | ????#"" "#"X### #????????????????????? | | ????########## #????????????????????? | | ?????????????### "#????????????????????? | | ???????????????# "##????????????????????# | | ???????????????#### R"#?????????????????????# | | ??????????????????#u@##?????????????????????# | | ??????????????????#"##??????????????????????# | | ?????????????????#"" ???????????????????????# | | ?????????????????# "#???????????????????????? | | ?????????????????"""#???????????????????????? | | ???????????????? ""#???????????????????????? | | ??????????????? ??????????????????????????? | | ???????????????? ???????????????????????????? | | ????????????????????????????????????????????? | | ????????????????????????????????????????????? | | ????????????????????????????????????????????? | | ????????????????????????????????????????????? | | ????????????????????????????????????????????? | | ????????????????????????????????????????????? | | ????????????????????????????????????????????? | | ????????????????????????????????????????????? | | ????????????????????????????????????????????? | | ????????????????????????????????????????????? | | ????????????????????????????????????????????? | | ????????????????????????????????????????????? | | ????????????????????????????????????????????? | | ????????????????????????????????????????????? | | ????????????????????????????????????????????? | | ????????????????????????????????????????????? | | ????????????????????????????????????????????? | +----------------------------------------------------+ Best States ------------- Heat Dissipation 25 Energy Generation 18 Energy Capacity 250 Matter Stores 300 Matter Capacity 300 Sight Range 16 Terrain Scan Density 10 Armor Coverage 150 Evasion (%) 40 Recoil Reduction 2 Item Schematics ----------------- None Robot Schematics ------------------ None Fabricated ------------ Nothing Repaired ---------- Nothing Alien Tech Used ----------------- None Achievements -------------- None Challenges ------------ None Game ------ Seed HypercooledIntegratedCutter Manual? 0 Play Time 00:15:33 Cumulative 35.8 hours Start 2025.07.23 @ 00:45:04 End 2025.07.23 @ 00:58:04 Sessions 1 Manual Loads 0 Difficulty Rogue Special Mode None Game No. 92 Rogue 92 Adventurer 0 Explorer 0 Win Type - Total 0 Types 0/0/0/0/0/0/0/0/0/0 Lore% 34 Gallery% 33 Achievement% 26 Wizard Run 0 Options --------- Layout 1 ASCII 0 Keyboard 0 Movement Mouse Keybinds 0 Fullscreen 1 Font 24/Smallcaps Map View 50x35 Zoom Use 0% Tactical HUD 1 Map Filters NONE Filters NONE Steam 1 RUN: f80b789d-3bcb-4566-9a54-02acf650d016